bitfinex-derivatives/quotes_BNBF0:USTF0_20250507
["timestamp","ask_amount","ask_price","bid_price","bid_amount"]
[1746578687270,0.30389551,605.74,604.28,1.55597239]
[1746578687570,0.30389551,605.73,604.28,1.55597239]
[1746578687971,0.30389551,605.72,604.28,1.55597239]
[1746578688166,0.28763777,605.81,604.28,1.55597239]
[1746578688470,0.30389333,605.8,604.28,1.55597239]
[1746578688771,0.30389333,605.79,604.28,1.55597239]
[1746578689072,0.30389333,605.78,604.28,1.55597239]
[1746578689566,0.30389333,605.77,604.28,1.55597239]
[1746578690073,0.30389333,605.76,604.28,1.55597239]
[1746578690468,0.30389333,605.75,604.28,1.55597239]
[1746578690671,0.30389333,605.74,604.28,1.55597239]
[1746578691167,0.30389333,605.73,604.28,1.55597239]
[1746578691671,0.30389333,605.8,604.28,1.55597239]
[1746578692068,1.261043,605.73,604.28,1.55597239]
[1746578692574,0.30389333,605.72,604.28,1.55597239]
[1746578693471,0.28767225,605.71,604.28,1.55597239]
[1746578693771,0.30389333,605.7,604.28,1.55597239]
[1746578698175,0.30389333,605.81,604.28,1.55597239]
[1746578701876,0.59153705,605.8,604.28,1.55597239]
[1746578702080,0.30389333,605.79,604.28,1.55597239]
[1746578704375,0.30389333,605.81,604.28,1.55597239]
[1746578704778,0.30389333,605.8,604.28,1.55597239]
[1746578705079,0.30389333,605.81,604.28,1.55597239]
[1746578705274,0.33013106,605.82,604.28,1.55597239]
[1746578705879,0.30381446,605.81,604.28,1.55597239]
[1746578706074,0.59141182,605.81,604.28,1.55597239]
[1746578706480,0.30381446,605.8,604.28,1.55597239]
[1746578707778,0.30381446,605.79,604.28,1.55597239]
[1746578708080,0.30381446,605.78,604.28,1.55597239]
[1746578708474,0.30381446,605.77,604.28,1.55597239]
[1746578708779,0.30381446,605.76,604.28,1.55597239]
[1746578709074,0.30381446,605.75,604.28,1.55597239]
[1746578709374,0.30381446,605.74,604.28,1.55597239]
[1746578709780,0.30381446,605.73,604.28,1.55597239]
[1746578710079,0.30381446,605.72,604.28,1.55597239]
[1746578710475,0.30381446,605.71,604.28,1.55597239]
[1746578710779,0.30381446,605.7,604.28,1.55597239]
[1746578711079,0.30381446,605.69,604.28,1.55597239]
[1746578711378,0.30381446,605.68,604.28,1.55597239]
[1746578711680,0.30381446,605.67,604.28,1.55597239]
[1746578712175,0.30381446,605.66,604.28,1.55597239]
[1746578712674,0.30381446,605.65,604.28,1.55597239]
[1746578712879,0.30381446,605.67,604.28,1.55597239]
[1746578715282,0.30381446,605.67,604.28,0.33097239]
[1746578716377,0.30381446,605.81,604.28,0.33097239]
[1746578717883,0.33013106,605.82,604.28,0.33097239]
[1746578718085,0.28773171,605.8,604.28,0.33097239]
[1746578718485,0.30381229,605.79,604.28,0.33097239]
[1746578721686,0.28773171,605.8,604.28,0.33097239]
[1746578721987,0.30381184,605.79,604.28,0.33097239]
[1746578722186,0.30381184,605.81,604.28,0.33097239]
[1746578722787,0.30381184,605.8,604.28,0.33097239]
[1746578723187,0.30381184,605.79,604.28,0.33097239]
[1746578723387,0.30381184,605.78,604.28,0.33097239]
[1746578723689,0.33013106,605.82,604.28,0.33097239]
[1746578723881,0.30381206,605.81,604.28,0.33097239]
[1746578724086,0.30381206,605.8,604.28,0.33097239]
[1746578724285,0.30381206,605.79,604.28,0.33097239]
[1746578724482,0.30381206,605.78,604.28,0.33097239]
[1746578724687,0.30381206,605.77,604.28,0.33097239]
[1746578724883,0.30381206,605.76,604.28,0.33097239]
[1746578725188,0.30381206,605.75,604.28,0.33097239]
[1746578725388,0.30381206,605.74,604.28,0.33097239]
[1746578725588,0.30381206,605.73,604.28,0.33097239]
[1746578725888,0.30381206,605.8,604.28,0.33097239]
[1746578726990,0.28761757,605.81,604.28,0.33097239]
[1746578727684,0.30389189,605.8,604.28,0.33097239]
[1746578729089,0.30389189,605.81,604.28,0.33097239]
[1746578730688,0.30389189,605.8,604.28,0.33097239]
[1746578730887,0.30389189,605.79,604.28,0.33097239]
[1746578731292,0.30389189,605.78,604.28,0.33097239]
[1746578731692,0.30389189,605.77,604.28,0.33097239]
[1746578732395,0.30389189,605.76,604.28,0.33097239]
[1746578732901,0.30389189,605.75,604.28,0.33097239]
[1746578733194,0.30389189,605.74,604.28,0.33097239]
[1746578733598,0.30389189,605.73,604.28,0.33097239]
[1746578733799,1.261043,605.61,604.28,0.33097239]
[1746578734300,0.30389189,605.6,604.28,0.33097239]
[1746578734600,0.30389189,605.59,604.28,0.33097239]
[1746578735003,0.30389189,605.58,604.28,0.33097239]
[1746578735298,0.30389189,605.57,604.28,0.33097239]
[1746578735606,0.30389189,605.56,604.28,0.33097239]
[1746578736005,0.30389189,605.55,604.28,0.33097239]
[1746578736804,0.30389189,605.6,604.28,0.33097239]
[1746578737502,0.30389189,605.81,604.28,0.33097239]
[1746578739111,0.28766393,605.8,604.28,0.33097239]
[1746578739506,0.30389189,605.79,604.28,0.33097239]
[1746578740610,0.30389189,605.81,604.28,0.33097239]
[1746578741310,0.28766393,605.8,604.28,0.33097239]
[1746578741712,0.30389189,605.79,604.28,0.33097239]
[1746578742913,0.30389189,605.78,604.28,0.33097239]
[1746578743413,0.30389189,605.77,604.28,0.33097239]
[1746578743612,0.30389189,605.76,604.28,0.33097239]
[1746578744012,0.30389189,605.75,604.28,0.33097239]
[1746578744610,0.30389189,605.74,604.28,0.33097239]
[1746578745213,0.30389189,605.73,604.28,0.33097239]
[1746578745512,0.30389189,605.72,604.28,0.33097239]
[1746578745814,0.30389189,605.81,604.28,0.33097239]
[1746578746313,0.30389189,605.8,604.28,0.33097239]
[1746578746712,0.30389189,605.81,604.28,0.33097239]
[1746578747314,0.30389189,605.81,604.28,0.97997239]
[1746578749715,0.30389189,606.02,604.28,0.97997239]
[1746578750016,1.261043,606.07,604.28,0.97997239]
[1746578750316,0.30375685,606.06,604.28,0.97997239]
[1746578750613,0.30375685,606.05,604.28,0.97997239]
[1746578750914,0.30375685,606.04,604.28,0.97997239]
[1746578751214,0.30375685,606.03,604.28,0.97997239]
[1746578751514,0.30375685,606.02,604.28,0.97997239]
[1746578751815,0.30375685,606.01,604.28,0.97997239]
[1746578752114,0.30375685,606.06,604.28,0.97997239]
[1746578752915,0.30375685,606.07,604.28,0.97997239]
[1746578755415,0.30375685,606.54,604.28,0.97997239]
[1746578755616,0.32975004,606.52,604.28,0.97997239]
[1746578756010,0.30375685,606.51,604.28,0.97997239]
[1746578756215,0.32976636,606.49,604.28,0.97997239]
[1746578756615,0.30375685,606.48,604.28,0.97997239]
[1746578756917,0.30375685,606.47,604.28,0.97997239]
[1746578757117,0.32978811,606.45,604.28,0.97997239]
[1746578757513,0.30373964,606.44,604.28,0.97997239]
[1746578757712,0.32980442,606.42,604.28,0.97997239]
[1746578758218,0.30373964,606.41,604.28,0.97997239]
[1746578758420,0.32982074,606.39,604.28,0.97997239]
[1746578759120,0.30373964,606.38,604.28,0.97997239]
[1746578759415,0.30373964,606.37,604.28,0.97997239]
[1746578759719,0.32983706,606.36,604.28,0.97997239]
[1746578759914,0.6335767,606.36,604.28,0.97997239]
[1746578760120,0.30373964,606.35,604.28,0.97997239]
[1746578760319,0.32984794,606.34,604.28,0.97997239]
[1746578760619,0.30373964,606.33,604.28,0.97997239]
[1746578760819,0.63359846,606.32,604.28,0.97997239]
[1746578761018,0.32986426,606.31,604.28,0.97997239]
[1746578761318,0.6336039,606.31,604.28,0.97997239]
[1746578761518,0.30373964,606.3,604.28,0.97997239]
[1746578761718,0.63361478,606.29,604.28,0.97997239]
[1746578761920,0.32988058,606.28,604.28,0.97997239]
[1746578762114,0.63362022,606.28,604.28,0.97997239]
[1746578762619,0.30373964,606.27,604.28,0.97997239]
[1746578762820,0.32989146,606.26,604.28,0.97997239]
[1746578763320,0.30373964,606.25,604.28,0.97997239]
[1746578763615,0.63364198,606.24,604.28,0.97997239]
[1746578764022,0.30373964,606.23,604.28,0.97997239]
[1746578764215,0.32991323,606.22,604.28,0.97997239]
[1746578764515,0.30373964,606.21,604.28,0.97997239]
[1746578764717,0.63366375,606.2,604.28,0.97997239]
[1746578765020,0.32992956,606.19,604.28,0.97997239]
[1746578765316,0.92122854,606.19,604.28,0.97997239]
[1746578765520,0.30373964,606.18,604.28,0.97997239]
[1746578765820,0.63368008,606.17,604.28,0.97997239]
[1746578766120,0.30373964,606.16,604.28,0.97997239]
[1746578766621,0.30373964,606.15,604.28,0.97997239]
[1746578767219,0.30373964,606.14,604.28,0.97997239]
[1746578767522,0.30373964,606.13,604.28,0.97997239]
[1746578767823,0.30373964,606.12,604.28,0.97997239]
[1746578768122,0.30373964,606.11,604.28,0.97997239]
[1746578768319,0.30373964,606.1,604.28,0.97997239]
[1746578768624,0.30373964,606.09,604.28,0.97997239]
[1746578768919,0.30373964,606.08,604.28,0.97997239]
[1746578769124,0.30373964,606.07,604.28,0.97997239]
[1746578769423,0.30373964,606.06,604.28,0.97997239]
[1746578769823,0.30373964,606.05,604.28,0.97997239]
[1746578770121,0.30373964,606.04,604.28,0.97997239]
[1746578770325,0.30373964,606.03,604.28,0.97997239]
[1746578770525,0.30373964,606.02,604.28,0.97997239]
[1746578770825,0.30373964,606.01,604.28,0.97997239]
[1746578771126,0.30373964,606.0,604.28,0.97997239]
[1746578771425,0.30373964,605.99,604.28,0.97997239]
[1746578771624,0.30373964,605.98,604.28,0.97997239]
[1746578771925,0.30373964,605.97,604.28,0.97997239]
[1746578772121,0.30373964,605.96,604.28,0.97997239]
[1746578772320,0.30373964,605.95,604.28,0.97997239]
[1746578772524,0.2875629,606.1,604.28,0.97997239]
[1746578772722,0.30377641,606.09,604.28,0.97997239]
[1746578773627,0.32998944,606.08,604.28,0.97997239]
[1746578774026,0.30377641,606.07,604.28,0.97997239]
[1746578774427,0.33000033,606.06,604.28,0.97997239]
[1746578774827,0.30377641,606.05,604.28,0.97997239]
[1746578775025,0.33001122,606.04,604.28,0.97997239]
[1746578775220,0.30377641,606.03,604.28,0.97997239]
[1746578775427,0.33002211,606.02,604.28,0.97997239]
[1746578775826,0.30377641,606.01,604.28,0.97997239]
[1746578776028,0.330033,606.0,604.28,0.97997239]
[1746578776327,0.30377641,605.99,604.28,0.97997239]
[1746578776922,0.28762113,605.98,604.28,0.97997239]
[1746578777324,0.30377641,605.97,604.28,0.97997239]
[1746578778627,0.30377641,605.97,604.28,1.93497239]
[1746578779623,0.59139754,605.96,604.28,1.93497239]
[1746578780023,0.30377641,605.95,604.28,1.93497239]
[1746578781123,0.30377641,605.94,604.28,1.93497239]
[1746578781429,0.30377641,605.93,604.28,1.93497239]
[1746578781831,0.30377641,605.92,604.28,1.93497239]
[1746578782332,0.30377641,605.91,604.28,1.93497239]
[1746578782732,0.30377641,605.9,604.28,1.93497239]
[1746578783134,0.30377641,605.89,604.28,1.93497239]
[1746578783428,0.59139754,605.89,604.28,1.93497239]
[1746578783632,0.30377641,605.88,604.28,1.93497239]
[1746578783832,0.30377641,605.87,604.28,1.93497239]
[1746578784228,0.30377641,605.86,604.28,1.93497239]
[1746578784433,0.30377641,605.85,604.28,1.93497239]
[1746578784733,0.30377641,605.84,604.28,1.93497239]
[1746578785128,0.30377641,605.83,604.28,1.93497239]
[1746578785333,0.30377641,605.82,604.28,1.93497239]
[1746578785733,0.30377641,605.81,604.28,1.93497239]
[1746578786033,0.30377641,605.8,604.28,1.93497239]
[1746578786333,0.30377641,605.79,604.28,1.93497239]
[1746578786734,0.30377641,605.78,604.28,1.93497239]
[1746578787034,0.30377641,605.77,604.28,1.93497239]
[1746578787335,0.30377641,605.76,604.28,1.93497239]
[1746578787733,0.30377641,605.75,604.28,1.93497239]
[1746578788933,0.30377641,605.77,604.28,1.93497239]
[1746578791154,0.30377641,605.98,604.28,1.93497239]
[1746578791533,0.30377641,605.97,604.28,1.93497239]
[1746578791832,0.30377641,605.96,604.28,1.93497239]
[1746578792034,0.30377641,605.95,604.28,1.93497239]
[1746578792234,0.30377641,605.99,604.28,1.93497239]
[1746578792435,0.30377641,605.98,604.28,1.93497239]
[1746578792631,0.30377641,605.97,604.28,1.93497239]
[1746578792832,0.30377641,605.96,604.28,1.93497239]
[1746578793035,0.30377641,605.99,604.28,1.93497239]
[1746578793740,0.330033,606.0,604.28,1.93497239]
[1746578794038,0.30387739,605.99,604.28,1.93497239]
[1746578795438,0.30387739,605.98,604.28,1.93497239]
[1746578795739,0.30387739,605.97,604.28,1.93497239]
[1746578795937,0.30387739,605.96,604.28,1.93497239]
[1746578796139,0.33006023,605.95,604.28,1.93497239]
[1746578796339,0.30387739,605.94,604.28,1.93497239]
[1746578796636,0.33007113,605.93,604.28,1.93497239]
[1746578797041,0.30387739,605.92,604.28,1.93497239]
[1746578797236,0.33008202,605.91,604.28,1.93497239]
[1746578797640,0.30386471,605.9,604.28,1.93497239]
[1746578797940,0.30386471,605.89,604.28,1.93497239]
[1746578798242,0.30386471,605.88,604.28,1.93497239]
[1746578798442,0.30386471,605.87,604.28,1.93497239]
[1746578798642,0.30386471,605.86,604.28,1.93497239]
[1746578798845,0.30386471,605.85,604.28,1.93497239]
[1746578799044,0.30386471,605.84,604.28,1.93497239]
[1746578799246,0.30386471,605.83,604.28,1.93497239]
[1746578799442,0.30386471,605.82,604.28,1.93497239]
[1746578799741,0.30386471,605.81,604.28,1.93497239]
[1746578799946,0.30386471,605.8,604.28,1.93497239]
[1746578800740,0.30386471,605.79,604.28,1.93497239]
[1746578801245,0.33008202,605.91,604.28,1.93497239]
[1746578801246,0.30386471,605.9,604.28,1.93497239]
[1746578801448,0.30386471,605.78,604.28,1.93497239]
[1746578801745,0.30386471,605.9,604.28,1.93497239]
[1746578804146,0.28762232,605.89,604.28,1.93497239]
[1746578804446,0.30386471,605.88,604.28,1.93497239]
[1746578805643,0.28762232,605.89,604.28,1.93497239]
[1746578806049,0.30380502,605.88,604.28,1.93497239]
[1746578809249,0.30380502,605.9,604.28,1.93497239]
[1746578809549,0.30380502,605.87,604.28,1.93497239]
[1746578809749,0.30380502,605.89,604.28,1.93497239]
[1746578810051,0.30380502,605.88,604.28,1.93497239]
[1746578810257,0.30380502,605.87,604.28,1.93497239]
[1746578810550,0.30380502,605.86,604.28,1.93497239]
[1746578811052,0.30380502,605.85,604.28,1.93497239]
[1746578811652,0.30380502,605.84,604.28,1.93497239]
[1746578812048,0.30380502,605.83,604.28,1.93497239]
[1746578812352,0.30380502,605.87,604.28,1.93497239]
[1746578812551,0.30380502,605.86,604.28,1.93497239]
[1746578812851,0.30380502,605.85,604.28,1.93497239]
[1746578813247,0.30380502,605.84,604.28,1.93497239]
[1746578813552,0.30380502,605.83,604.28,1.93497239]
[1746578813751,0.30380502,605.82,604.28,1.93497239]
[1746578813947,0.30380502,605.81,604.28,1.93497239]
[1746578814251,0.30380502,605.8,604.28,1.93497239]
[1746578814546,0.30380502,605.79,604.28,1.93497239]
[1746578814851,0.30380502,605.87,604.28,1.93497239]
[1746578815351,0.30380502,605.86,604.28,1.93497239]
[1746578816052,0.30380502,605.85,604.28,1.93497239]
[1746578816352,0.30380502,605.84,604.28,1.93497239]
[1746578816554,0.30380502,605.83,604.28,1.93497239]
[1746578816853,0.30380502,605.82,604.28,1.93497239]
[1746578817153,0.28762232,605.88,604.28,1.93497239]
[1746578817353,0.30379731,605.87,604.28,1.93497239]
[1746578817749,0.30379731,605.86,604.28,1.93497239]
[1746578818048,0.30379731,605.85,604.28,1.93497239]
[1746578818353,0.33008202,605.91,604.28,1.93497239]
[1746578818354,0.30379731,605.84,604.28,1.93497239]
[1746578818853,0.30379731,605.83,604.28,1.93497239]
[1746578819355,0.30379731,605.82,604.28,1.93497239]
[1746578819854,0.30379731,605.81,604.28,1.93497239]
[1746578820057,0.30379731,605.8,604.28,1.93497239]
[1746578820356,0.30379731,605.79,604.28,1.93497239]
[1746578820557,0.59140418,605.79,604.28,1.93497239]
[1746578820755,0.30379731,605.78,604.28,1.93497239]
[1746578821150,0.30379731,605.77,604.28,1.93497239]
[1746578821457,0.30379731,605.76,604.28,1.93497239]
[1746578821756,0.30379731,605.75,604.28,1.93497239]
[1746578822152,0.30379731,605.74,604.28,1.93497239]
[1746578822452,0.30379731,605.73,604.28,1.93497239]
[1746578822754,0.30379731,605.72,604.28,1.93497239]
[1746578823061,0.30379731,605.71,604.28,1.93497239]
[1746578823361,0.30379731,605.7,604.28,1.93497239]
[1746578823661,0.30379731,605.69,604.28,1.93497239]
[1746578823862,0.30379731,605.68,604.28,1.93497239]
[1746578824259,0.30379731,605.78,604.28,1.93497239]
[1746578824562,0.30379731,605.77,604.28,1.93497239]
[1746578824762,0.30379731,605.76,604.28,1.93497239]
[1746578825264,0.30379731,605.75,604.28,1.93497239]
[1746578825659,0.30379731,605.74,604.28,1.93497239]
[1746578825959,0.30379731,605.75,604.28,1.93497239]
[1746578826563,0.28760568,605.76,604.28,1.93497239]
[1746578826864,0.30379391,605.75,604.28,1.93497239]
[1746578827564,0.30379391,605.9,604.28,1.93497239]
[1746578828561,0.28760568,605.89,604.28,1.93497239]
[1746578828761,0.30379391,605.88,604.28,1.93497239]
[1746578830467,0.30379391,605.9,604.28,1.93497239]
[1746578831266,0.28762232,605.89,604.28,1.93497239]
[1746578831460,0.30379391,605.88,604.28,1.93497239]
[1746578832464,0.28762232,605.89,604.28,1.93497239]
[1746578832662,0.30380215,605.88,604.28,1.93497239]
[1746578836266,0.30380215,605.87,604.28,1.93497239]
[1746578836572,0.30380215,605.86,604.28,1.93497239]
[1746578836971,0.30380215,605.85,604.28,1.93497239]
[1746578837171,0.30380215,605.84,604.28,1.93497239]
[1746578837471,0.33008202,605.91,604.28,1.93497239]
[1746578837772,0.28764372,605.83,604.28,1.93497239]
[1746578838070,0.30385244,605.82,604.28,1.93497239]
[1746578838670,0.30385244,605.81,604.28,1.93497239]
[1746578838872,0.30385244,605.8,604.28,1.93497239]
[1746578839072,0.30385244,605.79,604.28,1.93497239]
[1746578839371,0.30385244,605.78,604.28,1.93497239]
[1746578839672,0.30385244,605.77,604.28,1.93497239]
[1746578839973,0.30385244,605.76,604.28,1.93497239]
[1746578840374,0.30385244,605.75,604.28,1.93497239]
[1746578840871,0.30385244,605.74,604.28,1.93497239]
[1746578841281,0.30385244,605.73,604.28,1.93497239]
[1746578841671,0.30385244,605.72,604.28,1.93497239]
[1746578841875,0.30385244,605.71,604.28,1.93497239]
[1746578842175,0.30385244,605.7,604.28,1.93497239]
[1746578842374,0.30385244,605.69,604.28,1.93497239]
[1746578842777,0.30385244,605.76,604.28,1.93497239]
[1746578843173,0.30385244,605.75,604.28,1.93497239]
[1746578843576,0.30385244,605.74,604.28,1.93497239]
[1746578844179,0.30385244,605.73,604.28,1.93497239]
[1746578844477,0.30385244,605.72,604.28,1.93497239]
[1746578844778,0.30385244,605.71,604.28,1.93497239]
[1746578845074,0.30385244,605.7,604.28,1.93497239]
[1746578845474,0.30385244,605.69,604.28,1.93497239]
[1746578845979,0.30385244,605.68,604.28,1.93497239]
[1746578846179,0.30385244,605.67,604.28,1.93497239]
[1746578846474,0.30385244,605.66,604.28,1.93497239]
[1746578846877,0.30385244,605.65,604.28,1.93497239]
[1746578847379,0.28766512,605.66,604.28,1.93497239]
[1746578847380,0.30385244,605.64,604.28,1.93497239]
[1746578847881,0.30385244,605.65,604.28,1.93497239]
[1746578848080,0.30385244,605.64,604.28,1.93497239]
[1746578848381,0.30385244,605.63,604.28,1.93497239]
[1746578848681,0.30385244,605.62,604.28,1.93497239]
[1746578849283,0.30385244,605.61,604.28,1.93497239]
[1746578850286,0.30385244,605.65,604.28,1.93497239]
[1746578850479,0.28766512,605.66,604.28,1.93497239]
[1746578850783,0.30394393,605.65,604.28,1.93497239]
[1746578851181,0.30394393,605.64,604.28,1.93497239]
[1746578851984,0.30394393,605.63,604.28,1.93497239]
[1746578852381,0.30394393,605.62,604.28,1.93497239]
[1746578852786,0.30394393,605.61,604.28,1.93497239]
[1746578853187,0.59162332,605.6,604.28,1.93497239]
[1746578853487,0.30394393,605.59,604.28,1.93497239]
[1746578853787,0.30394393,605.58,604.28,1.93497239]
[1746578854086,0.30394393,605.57,604.28,1.93497239]
[1746578854388,0.30394393,605.59,604.28,1.93497239]
[1746578854690,0.30394393,605.58,604.28,1.93497239]
[1746578854887,0.30394393,605.59,604.28,1.93497239]
[1746578857283,0.30394393,605.9,604.28,1.93497239]
[1746578858789,0.28765798,605.89,604.28,1.93497239]
[1746578858990,0.30394393,605.88,604.28,1.93497239]
[1746578859187,0.33010381,605.87,604.28,1.93497239]
[1746578859489,0.30394393,605.86,604.28,1.93497239]
[1746578862094,0.30394393,605.85,604.28,1.93497239]
[1746578862391,0.30394393,605.84,604.28,1.93497239]
[1746578862890,0.30394393,605.83,604.28,1.93497239]
[1746578863289,0.30394393,605.82,604.28,1.93497239]
[1746578863585,0.30394393,605.81,604.28,1.93497239]
[1746578864093,0.30394393,605.8,604.28,1.93497239]
[1746578864590,0.30394393,605.84,604.28,1.93497239]
[1746578864992,0.30394393,605.83,604.28,1.93497239]
[1746578865490,0.30394393,605.82,604.28,1.93497239]
[1746578865990,0.30394393,605.81,604.28,1.93497239]
[1746578866791,0.30394393,605.8,604.28,1.93497239]
[1746578867092,0.30394393,605.79,604.28,1.93497239]
[1746578867390,0.30394393,605.78,604.28,1.93497239]
[1746578867690,0.30394393,605.77,604.28,1.93497239]
[1746578867891,0.28766274,605.85,604.28,1.93497239]
[1746578868192,0.30387381,605.84,604.28,1.93497239]
[1746578868491,0.30387381,605.83,604.28,1.93497239]
[1746578868786,0.30387381,605.82,604.28,1.93497239]
[1746578868990,0.30387381,605.81,604.28,1.93497239]
[1746578869292,0.30387381,605.8,604.28,1.93497239]
[1746578869490,0.28766274,605.85,604.28,1.93497239]
[1746578869491,0.30387381,605.79,604.28,1.93497239]
[1746578869790,0.30387381,605.78,604.28,1.93497239]
[1746578869991,0.28766274,605.85,604.28,1.93497239]
[1746578869992,0.30387381,605.77,604.28,1.93497239]
[1746578870485,0.30387381,605.84,604.28,1.93497239]
[1746578870688,0.30387381,605.76,604.28,1.93497239]
[1746578870890,0.30387381,605.84,604.28,1.93497239]
[1746578871190,0.30387381,605.83,604.28,1.93497239]
[1746578871486,0.30387381,605.84,604.28,1.93497239]
[1746578871985,0.30387381,605.83,604.28,1.93497239]
[1746578872184,0.30387381,605.84,604.28,1.93497239]
[1746578872487,0.30387381,605.83,604.28,1.93497239]
[1746578872787,0.30387381,605.84,604.28,1.93497239]
[1746578873391,0.30387381,605.83,604.28,1.93497239]
[1746578873786,0.30387381,605.84,604.28,1.93497239]
[1746578874693,0.30387381,605.83,604.28,1.93497239]
[1746578874891,0.30387381,605.82,604.28,1.93497239]
[1746578875394,0.30387381,605.81,604.28,1.93497239]
[1746578875592,0.30387381,605.86,604.28,1.93497239]
[1746578875894,0.30387381,605.85,604.28,1.93497239]
[1746578876394,0.30387381,605.84,604.28,1.93497239]
[1746578876696,0.30387381,605.83,604.28,1.93497239]
[1746578877090,0.28764847,605.85,604.28,1.93497239]
[1746578877395,0.30387381,605.84,604.28,1.93497239]
[1746578877593,0.30387381,605.83,604.28,1.93497239]
[1746578877894,0.30387381,605.82,604.28,1.93497239]
[1746578878190,0.28764847,605.85,604.28,1.93497239]
[1746578878495,0.30385982,605.84,604.28,1.93497239]
[1746578878994,0.30385982,605.83,604.28,1.93497239]
[1746578879188,0.30385982,605.82,604.28,1.93497239]
[1746578879594,0.30385982,605.84,604.28,1.93497239]
[1746578881394,0.30385982,605.86,604.28,1.93497239]
[1746578882998,0.28765085,605.85,604.28,1.93497239]
[1746578883496,0.30385982,605.84,604.28,1.93497239]
[1746578885498,0.63397998,605.84,604.28,1.93497239]
[1746578885699,0.30385982,605.83,604.28,1.93497239]
[1746578886895,0.33013106,605.82,604.28,1.93497239]
[1746578887098,0.30385982,605.81,604.28,1.93497239]
[1746578887298,0.33014196,605.8,604.28,1.93497239]
[1746578887799,0.59156061,605.79,604.28,1.93497239]
[1746578888001,0.33015286,605.78,604.28,1.93497239]
[1746578888200,0.63401268,605.78,604.28,1.93497239]
[1746578888495,0.30385982,605.77,604.28,1.93497239]
[1746578888701,0.33016376,605.76,604.28,1.93497239]
[1746578889101,0.30385982,605.75,604.28,1.93497239]
[1746578889597,0.30385982,605.74,604.28,1.93497239]
[1746578890305,0.30385982,605.73,604.28,1.93497239]
[1746578890701,0.30385982,605.72,604.28,1.93497239]
[1746578890998,1.261043,605.67,604.28,1.93497239]
[1746578891505,0.30385982,605.66,604.28,1.93497239]
[1746578891703,0.30385982,605.65,604.28,1.93497239]
[1746578891999,0.30385982,605.64,604.28,1.93497239]
[1746578892405,0.30385982,605.63,604.28,1.93497239]
[1746578892805,0.30385982,605.62,604.28,1.93497239]
[1746578893198,0.30385982,605.61,604.28,1.93497239]
[1746578893500,1.261043,605.67,604.28,1.93497239]
[1746578893800,0.30396821,605.66,604.28,1.93497239]
[1746578894108,1.261043,605.67,604.28,1.93497239]
[1746578894409,0.30396821,605.66,604.28,1.93497239]
[1746578894608,0.59169992,605.66,604.28,1.93497239]
[1746578894801,0.30396821,605.65,604.28,1.93497239]
[1746578895006,0.30396821,605.64,604.28,1.93497239]
[1746578895304,0.30396821,605.63,604.28,1.93497239]
[1746578895704,0.30396821,605.62,604.28,1.93497239]
[1746578896104,0.30396821,605.61,604.28,1.93497239]
[1746578896309,0.30396821,605.6,604.28,1.93497239]
[1746578896507,0.30396821,605.59,604.28,1.93497239]
[1746578897114,0.30396821,605.58,604.28,1.93497239]
[1746578897610,0.30396821,605.57,604.28,1.93497239]
[1746578897912,0.30396821,605.56,604.28,1.93497239]
[1746578898213,0.30396821,605.55,604.28,1.93497239]
[1746578898513,0.30396821,605.54,604.28,1.93497239]
[1746578898807,0.30396821,605.53,604.28,1.93497239]
[1746578899107,0.28773171,605.66,604.28,1.93497239]
[1746578899108,0.30396821,605.65,604.28,1.93497239]
[1746578899412,0.28773171,605.66,604.28,1.93497239]
[1746578899413,0.30396821,605.64,604.28,1.93497239]
[1746578899711,0.30396821,605.63,604.28,1.93497239]
[1746578899914,0.33024008,605.62,604.28,1.93497239]
[1746578900311,0.30396821,605.61,604.28,1.93497239]
[1746578900907,0.33025099,605.6,604.28,1.93497239]
[1746578901212,0.30396821,605.59,604.28,1.93497239]
[1746578901814,0.30396821,605.58,604.28,1.93497239]
[1746578902007,0.33026735,605.57,604.28,1.93497239]
[1746578902207,0.63423556,605.57,604.28,1.93497239]
[1746578902508,0.30396821,605.56,604.28,1.93497239]
[1746578902809,0.30396821,605.55,604.28,1.93497239]
[1746578903314,0.92202646,605.54,604.28,1.93497239]
[1746578903513,0.33028916,605.53,604.28,1.93497239]
[1746578904115,0.30403763,605.52,604.28,1.93497239]
[1746578904410,0.30403763,605.51,604.28,1.93497239]
[1746578904814,0.30403763,605.5,604.28,1.93497239]
[1746578905514,0.30403763,605.49,604.28,1.93497239]
[1746578905714,0.30403763,605.48,604.28,1.93497239]
[1746578906115,0.30403763,605.47,604.28,1.93497239]
[1746578906413,0.30403763,605.46,604.28,1.93497239]
[1746578906710,0.30403763,605.45,604.28,1.93497239]
[1746578907012,0.30403763,605.44,604.28,1.93497239]
[1746578907410,0.33028916,605.53,604.28,1.93497239]
[1746578907411,0.30403763,605.43,604.28,1.93497239]
[1746578907612,0.30403763,605.42,604.28,1.93497239]
[1746578908016,0.30403763,605.41,604.28,1.93497239]
[1746578908314,0.30403763,605.4,604.28,1.93497239]
[1746578908917,0.30403763,605.39,604.28,1.93497239]
[1746578909412,0.30403763,605.38,604.28,1.93497239]
[1746578909916,0.30403763,605.37,604.28,1.93497239]
[1746578910218,0.59181693,605.37,604.28,1.93497239]
[1746578911417,0.30403763,605.36,604.28,1.93497239]
[1746578912018,0.30403763,605.35,604.28,1.93497239]
[1746578912323,0.30403763,605.34,604.28,1.93497239]